bitfinex-derivatives/quotes_SOLF0:USTF0_20240823
["timestamp","ask_amount","ask_price","bid_price","bid_amount"]
[1724390623262,3.48586752,145.6,145.57,8.8031]
[1724390624668,0.05236752,145.6,145.58,3.4338]
[1724390624966,0.05236752,145.6,145.59,7.37]
[1724390625471,0.05236752,145.6,145.59,10.8036]
[1724390626569,0.05236752,145.6,145.59,7.37]
[1724390627571,0.05236752,145.6,145.59,10.8036]
[1724390629568,0.05236752,145.6,145.52,29.48]
[1724390629769,0.05236752,145.6,145.59,7.37]
[1724390630474,0.05236752,145.6,145.59,5.37014]
[1724390630675,0.05236752,145.6,145.58,3.4337]
[1724390630877,0.05236752,145.6,145.59,7.37]
[1724390631274,0.05236752,145.6,145.52,29.48]
[1724390631577,0.05236752,145.6,145.59,7.37]
[1724390632078,0.05236752,145.6,145.59,10.8036]
[1724390632274,0.05236752,145.6,145.59,3.4336]
[1724390632474,0.05236752,145.6,145.59,10.8036]
[1724390633872,0.05236752,145.6,145.59,7.37]
[1724390635374,0.05236752,145.6,145.59,5.37041]
[1724390636879,0.05236752,145.6,145.59,8.80401]
[1724390640882,0.05236752,145.6,145.59,6.80429]
[1724390642383,0.05236752,145.6,145.59,10.23789]
[1724390642971,0.05236752,145.6,145.59,3.4336]
[1724390643175,0.05236752,145.6,145.59,10.8036]
[1724390644779,0.05236752,145.6,145.59,3.4336]
[1724390644980,0.05236752,145.6,145.59,10.8036]
[1724390645379,0.05236752,145.6,145.59,14.66426199]
[1724390646379,0.05236752,145.6,145.59,7.29426199]
[1724390646574,0.05236752,145.6,145.59,14.66426199]
[1724390647385,0.05236752,145.6,145.59,16.03764608]
[1724390647583,0.05236752,145.6,145.59,14.66426199]
[1724390647777,0.05236752,145.6,145.59,12.17688077]
[1724390647979,2.6183,145.66,145.63,7.37]
[1724390648185,1.3419,145.66,145.64,7.37]
[1724390648479,3.4323,145.65,145.64,7.37]
[1724390649483,4.82286926,145.66,145.64,7.37]
[1724390650085,3.4322,145.65,145.64,7.37]
[1724390653382,3.4322,145.65,145.63,7.4199666]
[1724390653782,0.04886926,145.66,145.63,7.4199666]
[1724390654090,0.04886926,145.66,145.65,7.37]
[1724390654483,0.04886926,145.66,145.65,10.8022]
[1724390654984,0.04886926,145.66,145.63,0.0499666]
[1724390654985,0.04886926,145.66,145.64,7.37]
[1724390655191,0.04886926,145.66,145.64,10.8024]
[1724390655490,0.04886926,145.66,145.64,10.74575]
[1724390655690,0.04886926,145.66,145.64,3.4324]
[1724390658290,0.04886926,145.66,145.64,10.8025]
[1724390661293,2.02025,145.64,145.63,0.0499666]
[1724390661493,1.9702834,145.63,145.62,7.37]
[1724390661689,7.37,145.68,145.62,10.62701794]
[1724390661883,7.37,145.68,145.62,5.3997166]
[1724390662088,1.3607,145.69,145.63,3.4326]
[1724390662395,7.37,145.68,145.63,7.37]
[1724390662694,0.04837932,145.67,145.63,7.37]
[1724390662896,3.432,145.66,145.63,10.8026]
[1724390663289,3.432,145.66,145.64,7.37]
[1724390663695,3.432,145.66,145.63,10.8026]
[1724390664694,3.432,145.66,145.6,29.48]
[1724390664695,3.48027932,145.67,145.65,7.37]
[1724390668501,3.48027932,145.67,145.64,3.4324]
[1724390668705,3.48027932,145.67,145.65,7.37]
[1724390669397,3.48027932,145.67,145.64,3.4324]
[1724390669597,3.48027932,145.67,145.64,10.8024]
[1724390669792,2.0,145.64,145.63,3.4326]
[1724390669996,3.432,145.66,145.63,5.2860962]
[1724390669997,0.04696585,145.65,145.63,5.2860962]
[1724390670194,1.00043001,145.63,145.58,4.0352]
[1724390670402,1.00043001,145.63,145.62,7.37]
[1724390670599,1.00043001,145.63,145.62,8.74292858]
[1724390670902,1.00043001,145.63,145.62,12.59678765]
[1724390671206,0.04368748,145.64,145.62,14.02858764]
[1724390671399,0.04368748,145.64,145.62,8.80179999]
[1724390671999,3.4327,145.63,145.53,24.02623613]
[1724390672304,0.04368748,145.64,145.6,5.37027]
[1724390672499,0.04368748,145.64,145.62,3.4329]
[1724390672702,0.04368748,145.64,145.63,7.37]
[1724390674603,0.04368748,145.64,145.62,3.4329]
[1724390676608,0.04368748,145.64,145.61,7.37]
[1724390676907,0.04368748,145.64,145.62,1.37307115]
[1724390677108,0.04368748,145.64,145.62,3.85477893]
[1724390677306,0.04368748,145.64,145.61,7.37]
[1724390677506,0.04368748,145.64,145.62,5.22785008]
[1724390677706,0.04368748,145.64,145.62,3.4329]
[1724390677908,0.04368748,145.64,145.63,7.37]
[1724390678106,0.04368748,145.64,145.63,10.8027]
[1724390678411,1.3607,145.69,145.63,12.59626506]
[1724390678607,1.3607,145.69,145.65,7.37]
[1724390679409,3.4318,145.67,145.66,0.04767538]
[1724390683413,3.48362239,145.68,145.66,0.04767538]
[1724390690117,0.05212239,145.68,145.67,10.8018]
[1724390690419,0.05212239,145.68,145.67,18.1395265]
[1724390690612,0.05212239,145.68,145.67,14.28932505]
[1724390690918,3.4305,145.73,145.67,14.70767167]
[1724390691217,8.754,145.74,145.67,3.48752505]
[1724390691412,3.4307,145.72,145.68,7.37]
[1724390691615,3.4307,145.72,145.69,3.4313]
[1724390692021,3.47562685,145.72,145.69,3.47907745]
[1724390692321,0.04492685,145.72,145.7,10.8008]
[1724390692516,0.04492685,145.72,145.7,7.37]
[1724390693819,0.04492685,145.72,145.71,7.37]
[1724390694719,0.04492685,145.72,145.71,10.8008]
[1724390698613,0.04492685,145.72,145.69,0.04777745]
[1724390698818,0.04492685,145.72,145.71,7.37]
[1724390699315,0.04492685,145.72,145.7,10.8009]
[1724390701816,0.04492685,145.72,145.71,7.37]
[1724390702228,0.04492685,145.72,145.71,10.8008]
[1724390702726,1.99609,145.77,145.73,3.4302]
[1724390703023,7.37,145.78,145.73,7.37]
[1724390703825,0.04929373,145.77,145.74,0.04767834]
[1724390704224,0.04929373,145.77,145.74,7.41767834]
[1724390704624,0.04929373,145.77,145.75,7.37]
[1724390704819,3.47879373,145.77,145.75,7.37]
[1724390705125,0.04929373,145.77,145.75,7.37]
[1724390705625,0.04929373,145.77,145.75,10.7999]
[1724390705826,0.04929373,145.77,145.75,7.37]
[1724390706218,0.04929373,145.77,145.75,14.25125752]
[1724390706421,0.04929373,145.77,145.75,10.7997]
[1724390706620,0.04929373,145.77,145.75,7.37]
[1724390707023,0.04929373,145.77,145.76,3.4296]
[1724390707321,0.04929373,145.77,145.75,7.37]
[1724390707525,0.04929373,145.77,145.76,3.4296]
[1724390710021,0.04929373,145.77,145.76,10.7996]
[1724390711427,0.04929373,145.77,145.76,7.37]
[1724390714128,0.04929373,145.77,145.75,6.81938257]
[1724390714428,0.04929373,145.77,145.76,10.7996]
[1724390716628,3.4285,145.81,145.77,3.4292]
[1724390716928,3.4285,145.81,145.79,7.37]
[1724390717627,3.4285,145.81,145.79,0.04467018]
[1724390717628,3.4287,145.8,145.79,0.04467018]
[1724390719026,3.4287,145.8,145.79,7.41467018]
[1724390719228,0.05198788,145.81,145.79,7.41467018]
[1724390719930,3.48048788,145.81,145.79,7.41467018]
[1724390721133,3.4287,145.8,145.79,0.04467018]
[1724390722628,0.05198788,145.81,145.79,7.41467018]
[1724390723330,0.05198788,145.81,145.8,3.4287]
[1724390723530,0.05198788,145.81,145.79,7.41467018]
[1724390723728,0.05198788,145.81,145.79,10.84347018]
[1724390724036,0.05198788,145.81,145.79,7.41467018]
[1724390724731,0.05198788,145.81,145.79,10.84347018]
[1724390724932,1.3756,145.85,145.79,7.41467018]
[1724390725129,1.3756,145.85,145.82,7.37]
[1724390725325,3.428,145.84,145.82,7.37]
[1724390725525,1.3756,145.85,145.82,7.37]
[1724390725925,3.4281,145.83,145.82,0.04582431]
[1724390727935,3.4281,145.83,145.82,0.02401431]
[1724390731631,3.4281,145.83,145.82,0.00248431]
[1724390732445,3.429,145.79,145.75,3.38958257]
[1724390732640,7.37,145.83,145.77,7.37]
[1724390733145,3.4287,145.8,145.77,10.7994]
[1724390733643,3.429,145.79,145.77,7.41802834]
[1724390733841,1.96359166,145.77,145.72,1.2933]
[1724390734139,7.37,145.82,145.76,3.40682834]
[1724390734140,8.7434,145.82,145.76,3.40682834]
[1724390734841,3.4289,145.79,145.78,0.04687968]
[1724390739844,3.4299,145.75,145.68,9.5487]
[1724390740141,7.37,145.79,145.73,3.35956999]
[1724390740346,3.4298,145.76,145.73,6.78986999]
[1724390740842,0.0495242,145.76,145.73,3.40312007]
[1724390741248,3.4299,145.75,145.73,3.40312007]
[1724390741734,3.4301,145.74,145.73,0.04355008]
[1724390741938,1.95672992,145.73,145.72,7.37]
[1724390742143,3.95742992,145.72,145.68,2.6847]
[1724390742444,3.4301,145.74,145.71,3.41257008]
[1724390742739,1.3303,145.77,145.72,7.37]
[1724390742940,0.05160722,145.76,145.73,0.05084125]
[1724390743336,3.4301,145.75,145.73,0.05084125]
[1724390745845,3.4301,145.74,145.73,0.05084125]
[1724390746351,3.48140722,145.76,145.73,0.05084125]
[1724390746650,0.05160722,145.76,145.73,7.42084125]
[1724390746851,3.48140722,145.76,145.73,7.42084125]
[1724390747146,0.05160722,145.76,145.73,7.42084125]
[1724390747351,3.43,145.75,145.73,7.42084125]
[1724390747545,3.43,145.75,145.73,5.42016125]
[1724390747745,0.05160722,145.76,145.73,5.42016125]
[1724390748050,3.4301,145.74,145.73,5.42016125]
[1724390748248,3.4301,145.74,145.73,3.42044125]
[1724390749152,3.4299,145.75,145.73,3.42044125]
[1724390749845,3.4299,145.75,145.74,7.37]
[1724390750243,3.47551462,145.76,145.74,7.37]
[1724390750449,0.04581462,145.76,145.74,7.37]
[1724390752543,0.04581462,145.76,145.75,3.48012461]
[1724390753658,0.04581462,145.76,145.75,7.37]
[1724390753850,0.04581462,145.76,145.75,10.7746859]
[1724390754850,3.47541462,145.76,145.75,10.7746859]
[1724390755149,3.47541462,145.76,145.71,3.4306]
[1724390755352,3.47541462,145.76,145.75,7.37]
[1724390757249,0.04581462,145.76,145.75,7.37]
[1724390757649,0.04581462,145.76,145.75,10.71410553]
[1724390758453,3.4293,145.78,145.75,10.71410553]
[1724390758656,3.4293,145.78,145.77,7.37]
[1724390759055,1.3728,145.81,145.77,7.37]
[1724390759456,0.05181322,145.8,145.78,0.05001308]
[1724390759959,3.4289,145.79,145.78,0.05001308]
[1724390761456,3.4289,145.79,145.78,7.42001308]
[1724390761755,0.05181322,145.8,145.78,7.42001308]
[1724390762155,2.6376,145.85,145.78,7.42001308]
[1724390762456,3.27815,145.88,145.84,7.37]
[1724390762649,2.6471,145.88,145.84,7.37]
[1724390763057,0.05106188,145.87,145.85,0.04559858]
[1724390763455,0.05106188,145.87,145.86,7.37]
[1724390763763,317.62943377,145.98,145.86,7.37]
[1724390763764,14.1270856,145.95,145.86,7.37]
[1724390763955,3.36225,145.95,145.88,7.37]
[1724390764152,4.71483743,145.95,145.88,7.37]
[1724390764456,4.71483743,145.95,145.85,3.4274]
[1724390764457,12.08483743,145.95,145.9,7.37]
[1724390764655,7.37,145.94,145.88,7.37]
[1724390764854,0.05085954,145.92,145.9,0.04386085]
[1724390765259,1.95600915,145.9,145.89,7.37]
[1724390765460,7.37,145.93,145.88,7.37]
[1724390766255,7.37,145.93,145.89,0.04549591]
[1724390766256,0.04990549,145.92,145.89,0.04549591]
[1724390766857,3.4263,145.9,145.89,0.04549591]
[1724390767156,1.91873409,145.89,145.85,7.37]
[1724390767363,3.4266,145.89,145.87,7.37]
[1724390767656,2.676,145.91,145.87,7.37]
[1724390768159,3.4268,145.88,145.86,7.37]
[1724390768361,7.41328133,145.9,145.86,0.04537503]
[1724390768662,7.41328133,145.9,145.83,7.37]
[1724390768663,1.95432497,145.86,145.83,7.37]
[1724390768960,1.338,145.89,145.81,29.48]
[1724390769260,1.338,145.89,145.85,7.37]
[1724390769660,1.338,145.89,145.78,2.6506]
[1724390769661,0.04838205,145.88,145.86,0.03172852]
[1724390769961,3.4273,145.86,145.84,7.37]
[1724390770163,3.4273,145.86,145.84,7.40172852]
[1724390770662,0.04838205,145.88,145.85,7.37]
[1724390771255,3.4273,145.86,145.85,7.37]
[1724390772057,3.47518205,145.88,145.85,7.37]
[1724390772259,0.04838205,145.88,145.87,7.37]
[1724390772451,0.04838205,145.88,145.84,0.03172852]
[1724390772658,3.47538205,145.88,145.87,7.37]
[1724390773159,3.47518205,145.88,145.87,7.37]
[1724390774158,0.04838205,145.88,145.87,7.37]
[1724390775464,3.47518205,145.88,145.87,7.37]
[1724390777855,3.4274,145.86,145.84,0.03172852]
[1724390778260,0.04838205,145.88,145.85,7.37]
[1724390778455,3.4272,145.86,145.85,5.37041]
[1724390781466,3.4275,145.85,145.84,0.03172852]
[1724390781667,3.4275,145.85,145.84,7.40172852]
[1724390782370,0.04838205,145.88,145.84,7.40172852]
[1724390782569,0.04838205,145.88,145.87,7.37]
[1724390782959,3.47518205,145.88,145.87,7.37]
[1724390784059,3.4274,145.86,145.84,0.03172852]
[1724390784264,3.4274,145.86,145.85,7.37]
[1724390784867,3.47538205,145.88,145.85,7.37]
[1724390785068,0.04838205,145.88,145.87,7.37]
[1724390785967,3.4271,145.87,145.84,0.03172852]
[1724390786161,3.4271,145.87,145.86,7.37]
[1724390787467,3.4271,145.87,145.84,0.03172852]
[1724390787672,3.4271,145.87,145.86,7.37]
[1724390789770,3.4271,145.87,145.86,5.36973]
[1724390792175,3.47528205,145.88,145.86,5.36973]
[1724390792674,3.427,145.87,145.86,5.36973]
[1724390793676,3.427,145.87,145.86,3.36885]
[1724390794375,3.47528205,145.88,145.86,3.36885]
[1724390794579,0.04838205,145.88,145.86,3.36885]
[1724390796182,3.47528205,145.88,145.86,3.36885]
[1724390798382,0.04838205,145.88,145.86,6.79605]
[1724390798684,1.2847,145.92,145.86,3.36885]
[1724390798877,1.2847,145.92,145.9,7.37]
[1724390799182,3.4261,145.91,145.9,7.37]
[1724390799880,3.4263,145.9,145.89,7.4210578]
[1724390803077,3.4261,145.91,145.89,7.4210578]
[1724390803284,3.4261,145.91,145.9,7.37]
[1724390804077,3.4263,145.9,145.89,7.4210578]
[1724390804580,3.4263,145.9,145.89,0.0510578]
[1724390805188,3.4263,145.9,145.89,0.0301178]
[1724390806282,3.4263,145.9,145.89,7.4001178]
[1724390807379,3.4263,145.9,145.89,7.37]
[1724390807587,3.4263,145.9,145.89,7.3545378]
[1724390809883,3.45532,145.89,145.88,0.02905277]
[1724390810088,3.4265,145.89,145.88,0.00023277]
[1724390812688,0.04780247,145.92,145.84,3.35824809]
[1724390812689,1.99920723,145.88,145.84,3.39148111]
[1724390812894,8.6792,145.94,145.87,5.37079276]
[1724390813193,8.6792,145.94,145.87,7.37]
[1724390813194,3.4269,145.88,145.87,7.37]
[1724390816596,3.4272,145.87,145.86,7.37]
[1724390820202,3.4272,145.87,145.86,5.37041]
[1724390820499,3.4277,145.85,145.82,3.49974539]
[1724390820699,3.4277,145.85,145.84,7.37]
[1724390820700,3.47203754,145.85,145.84,7.37]
[1724390820903,3.47203754,145.85,145.82,6.86129928]
[1724390821099,3.47203754,145.85,145.84,7.37]
[1724390821297,0.04433754,145.85,145.84,7.37]
[1724390822393,1.99973,145.84,145.81,3.4283]
[1724390822600,0.04433754,145.85,145.75,1.3897]
[1724390822795,0.04572525,145.81,145.8,3.37137]
[1724390823100,3.4287,145.8,145.75,1.3897]
[1724390823399,0.0444487,145.79,145.75,4.02636403]
[1724390823599,0.0444487,145.79,145.78,7.37]
[1724390823794,1.37496,145.78,145.75,0.59666403]
[1724390823993,0.0444487,145.79,145.75,4.02636403]
[1724390824193,1.2953,145.84,145.77,7.37]
[1724390824394,1.2953,145.84,145.81,7.37]
[1724390825192,1.34429481,145.84,145.81,7.4144487]
[1724390825396,3.4282,145.82,145.81,7.4144487]
[1724390825597,3.4282,145.82,145.81,0.0444487]
[1724390826000,3.4282,145.82,145.81,7.4144487]
[1724390833803,3.4282,145.82,145.81,0.0444487]
[1724390834000,3.429,145.79,145.78,7.37]
[1724390834811,1.3837,145.85,145.78,7.37]
[1724390835109,0.05152016,145.83,145.8,7.37]
[1724390835305,3.4284,145.81,145.8,7.37]
[1724390837908,0.05152016,145.83,145.79,7.37]
[1724390837909,3.4287,145.8,145.79,7.37]
[1724390838116,0.0474505,145.81,145.69,225.0]
[1724390838310,7.37,145.84,145.78,5.37015]
[1724390838613,2.7262,145.85,145.71,1.3002]
[1724390838614,7.41834259,145.82,145.77,7.37]
[1724390839111,3.4291,145.78,145.77,5.37028]
[1724390839312,3.4291,145.78,145.77,1.37061999]
[1724390839710,0.04688218,145.79,145.76,7.37]
[1724390839711,4.05857001,145.77,145.76,7.37]
[1724390840216,0.62897001,145.77,145.76,7.37]
[1724390841107,0.04688218,145.79,145.76,7.37]
[1724390841304,0.04688218,145.79,145.78,7.37]
[1724390841511,3.47578218,145.79,145.78,7.37]
[1724390842214,0.04688218,145.79,145.74,3.37804121]
[1724390842413,0.04688218,145.79,145.71,1.3002]
[1724390842614,0.04688218,145.79,145.77,7.37]
[1724390842916,3.4296,145.76,145.75,7.37]
[1724390843313,3.4296,145.76,145.75,5.36824]
[1724390844215,3.4299,145.75,145.73,3.48660802]
[1724390844411,0.04483484,145.75,145.69,1.2583]
[1724390844615,0.04483484,145.75,145.69,0.70221677]
[1724390844806,0.04483484,145.75,145.71,7.37]
[1724390845014,0.05216494,145.74,145.71,7.37]
[1724390845215,0.05216494,145.74,145.67,3.4316]
[1724390845409,0.04574695,145.72,145.65,4.79114269]
[1724390845608,0.04574695,145.72,145.69,7.37]
[1724390846020,3.4312,145.7,145.69,7.37]
[1724390846615,0.04574695,145.72,145.69,7.37]
[1724390847314,3.431,145.71,145.69,7.37]
[1724390847515,0.04574695,145.72,145.69,7.37]
[1724390847713,0.04574695,145.72,145.66,3.4318]
[1724390847912,0.04574695,145.72,145.7,7.37]
[1724390848314,3.4308,145.71,145.7,7.37]
[1724390848516,0.04574695,145.72,145.69,7.37]
[1724390848920,0.04574695,145.72,145.69,5.36845]
[1724390848921,3.4312,145.7,145.69,5.36845]
[1724390849626,3.4308,145.71,145.69,5.36845]
[1724390849917,3.4308,145.71,145.7,7.37]
[1724390850716,3.4308,145.71,145.67,3.4316]
[1724390850918,3.4308,145.71,145.7,7.37]
[1724390852911,5.43096,145.7,145.67,32.9116]
[1724390853115,5.43096,145.7,145.69,5.37014]
[1724390853116,3.4311,145.7,145.69,5.37014]
[1724390855322,3.47634695,145.72,145.69,5.37014]
[1724390855519,3.47634695,145.72,145.71,7.37]
[1724390856623,2.00082,145.71,145.6,29.48]
[1724390856828,7.37,145.73,145.68,5.36918]
[1724390857125,3.4313,145.69,145.68,3.36822]
[1724390858319,0.05072589,145.72,145.65,6.84814476]
[1724390858526,3.4316,145.68,145.65,6.84814476]
[1724390858722,3.4316,145.68,145.67,7.37]
[1724390865639,3.4316,145.68,145.67,6.36993]
[1724390866029,3.4316,145.68,145.67,5.37013]
[1724390866634,0.05183543,145.7,145.67,5.37013]
[1724390866934,0.05183543,145.7,145.69,7.37]
[1724390868130,3.48283543,145.7,145.69,7.37]
[1724390868930,3.48283543,145.7,145.69,5.37]
[1724390869528,3.4313,145.69,145.65,6.84824476]
[1724390869726,3.4313,145.69,145.68,7.37]
[1724390870537,0.05183543,145.7,145.65,6.84824476]
[1724390870538,5.43146,145.68,145.67,7.37]
[1724390870738,3.4316,145.68,145.67,3.36884]
[1724390871435,0.05183543,145.7,145.67,3.36884]
[1724390871631,0.05183543,145.7,145.68,7.37]
[1724390873040,3.4313,145.69,145.68,7.37]
[1724390876438,3.4321,145.66,145.61,3.8924]
[1724390876642,8.7316,145.72,145.66,7.37]
[1724390876837,0.0514882,145.7,145.66,7.37]
[1724390877034,3.4318,145.67,145.66,7.37]
[1724390879840,3.4318,145.67,145.66,5.37027]
[1724390881642,3.4322,145.65,145.64,7.37]
[1724390882031,3.4324,145.64,145.56,3.8589]
[1724390882238,0.04532922,145.61,145.56,3.12041793]
[1724390882438,0.04532922,145.61,145.6,7.37]
[1724390882639,0.04532922,145.61,145.6,5.36916]
[1724390883546,0.04532922,145.61,145.6,8.80236]
[1724390883744,0.04532922,145.61,145.6,6.80052]
[1724390884435,3.4324,145.64,145.6,6.80052]
[1724390884640,3.4324,145.64,145.63,7.37]
[1724390885739,3.47692523,145.65,145.63,7.37]
[1724390889451,3.4324,145.64,145.63,7.37]
[1724390890844,3.47692523,145.65,145.63,7.37]
[1724390891050,3.47692523,145.65,145.62,3.47802922]
[1724390891250,3.47692523,145.65,145.64,7.37]
[1724390894751,3.4326,145.64,145.62,0.04532922]
[1724390894954,0.04462523,145.65,145.62,0.04532922]
[1724390895245,0.04462523,145.65,145.62,7.37]
[1724390896151,3.4328,145.63,145.6,3.4334]
[1724390896451,3.4328,145.63,145.62,7.37]
[1724390897553,0.04462523,145.65,145.62,7.37]
[1724390897749,0.04462523,145.65,145.64,7.37]
[1724390897954,3.4326,145.64,145.6,32.9133]
[1724390898156,3.4326,145.64,145.63,7.37]
[1724390898649,3.47692523,145.65,145.63,7.37]
[1724390899852,3.4324,145.64,145.63,7.37]
[1724390903255,3.4324,145.64,145.63,5.40488]
[1724390904049,3.4324,145.64,145.63,3.40515]
[1724390905255,3.47692523,145.65,145.63,3.40515]
[1724390905463,0.04462523,145.65,145.6,29.48]
[1724390905763,0.04462523,145.65,145.63,7.37]
[1724390905764,3.4326,145.64,145.63,7.37]
[1724390906149,3.4326,145.64,145.63,5.37028]
[1724390907754,3.47682523,145.65,145.63,5.37028]
[1724390907954,3.47682523,145.65,145.64,7.37]
[1724390914360,3.47682523,145.65,145.63,7.37]
[1724390916866,3.4324,145.64,145.63,7.37]
[1724390917167,0.04462523,145.65,145.63,7.37]
[1724390917759,3.47692523,145.65,145.63,7.37]
[1724390918763,3.4324,145.64,145.63,7.37]
[1724390920469,3.47692523,145.65,145.63,7.37]
[1724390920671,0.04462523,145.65,145.64,7.37]
[1724390922368,3.47682523,145.65,145.64,7.37]
[1724390922666,3.47682523,145.65,145.64,6.17016]
[1724390923063,3.4325,145.64,145.61,3.433]
[1724390923269,3.4325,145.64,145.62,7.37]
[1724390923663,3.4325,145.64,145.62,6.57019]
[1724390924269,3.4325,145.64,145.61,3.433]
[1724390924570,3.4328,145.63,145.54,1.2623]
[1724390924763,0.04910448,145.6,145.55,54.01724322]
[1724390924968,0.04910448,145.6,145.59,3.4336]
[1724390926175,0.04910448,145.6,145.59,1.43305]
[1724390926373,0.04910448,145.6,145.59,8.80305]
[1724390926566,3.4328,145.63,145.6,3.4333]
[1724390926766,3.4328,145.63,145.62,7.37]
[1724390928972,3.4328,145.63,145.61,7.41475862]
[1724390929166,3.4328,145.63,145.61,7.37]
[1724390929472,3.433,145.62,145.55,54.01724322]
[1724390929669,3.433,145.62,145.6,7.37]
[1724390930071,8.6865,145.67,145.61,7.37]
[1724390930272,0.04761359,145.65,145.61,7.37]
[1724390930870,3.4327,145.63,145.6,3.4332]
[1724390931075,3.48128412,145.63,145.62,7.37]
[1724390931371,0.04858412,145.63,145.62,10.8029]
[1724390932374,0.04858412,145.63,145.62,7.37]
[1724390933179,0.04858412,145.63,145.62,10.8029]
[1724390933367,0.04858412,145.63,145.62,7.37]
[1724390939782,0.04858412,145.63,145.62,10.8029]
[1724390940581,0.04858412,145.63,145.62,7.37]
[1724390941678,0.04858412,145.63,145.62,10.8029]
[1724390942378,3.432,145.66,145.63,3.4326]
[1724390942584,1.3165,145.67,145.64,7.37]
[1724390942983,3.4321,145.66,145.64,7.37]
[1724390943487,3.48245396,145.66,145.64,7.41471203]
[1724390944889,3.4322,145.65,145.64,7.41471203]
[1724390945195,3.4322,145.65,145.64,0.04471203]
[1724390949384,3.4329,145.62,145.55,54.01724322]
[1724390949589,3.4329,145.62,145.6,5.40620203]
[1724390949787,1.3165,145.67,145.61,7.37]
[1724390949990,10.68177,145.67,145.61,7.37]
[1724390950592,0.0471497,145.65,145.61,7.37]
[1724390950991,3.4328,145.63,145.61,7.37]
[1724390956398,3.4325,145.64,145.61,8.80325]
[1724390956593,3.4325,145.64,145.63,7.37]
[1724390957701,0.0471497,145.65,145.61,3.4331]
[1724390957890,3.4327,145.63,145.61,1.43337]
[1724390958093,3.4327,145.63,145.62,7.37]
[1724390959398,3.4329,145.62,145.6,3.4333]
[1724390959594,3.4329,145.62,145.61,7.37]
[1724390960195,3.4329,145.62,145.61,5.37014]
[1724390960600,3.4328,145.63,145.61,5.37014]
[1724390960800,3.4328,145.63,145.62,7.37]
[1724390962705,0.04591312,145.64,145.55,3.35165687]
[1724390963007,0.04591312,145.64,145.52,6.865]
[1724390963008,0.04569199,145.61,145.6,5.37027]
[1724390963200,0.0441815,145.62,145.57,3.34903618]
[1724390963501,0.0459437,145.61,145.6,7.37]
[1724390963701,0.05207867,145.62,145.6,7.37]
[1724390963897,0.05207867,145.62,145.59,7.37]
[1724390964212,3.4333,145.61,145.59,7.37]
[1724390964904,3.4334,145.6,145.57,3.434]
[1724390965104,3.4334,145.6,145.59,5.37027]
[1724390966502,3.4334,145.6,145.54,1.2698]
[1724390966503,0.05207867,145.62,145.58,7.37]
[1724390966809,0.05207867,145.62,145.54,1.2698]
[1724390966810,0.04588523,145.61,145.6,7.37]
[1724390967110,3.47898523,145.61,145.6,7.37]
[1724390967502,0.04588523,145.61,145.6,7.37]
[1724390968309,3.47898523,145.61,145.6,7.37]
[1724390968811,3.47898523,145.61,145.55,3.42730698]
[1724390968812,3.4337,145.59,145.57,7.37]
[1724390969114,3.4337,145.59,145.57,5.37028]
[1724390969406,3.4337,145.59,145.58,7.37]
[1724390970209,3.4338,145.58,145.55,3.4345]
[1724390970402,1.99513,145.63,145.58,7.37]
[1724390970602,0.05222729,145.62,145.58,7.37]
[1724390970810,0.05222729,145.62,145.55,3.4345]
[1724390971009,0.05270645,145.6,145.58,7.37]
[1724390971508,3.4336,145.59,145.58,7.06957]
[1724390972104,3.4336,145.59,145.58,6.56971]
[1724390972404,0.05270645,145.6,145.58,7.37]
[1724390972801,3.4337,145.59,145.55,3.4345]
[1724390973009,3.4337,145.59,145.58,7.37]
[1724390973208,0.05270645,145.6,145.58,7.37]
[1724390973415,3.4336,145.59,145.58,7.37]
[1724390973708,0.05270645,145.6,145.58,7.37]